bitfinex/quotes_ETHUSD_20250722
["timestamp","ask_amount","ask_price","bid_price","bid_amount"]
[1753210772959,0.24746413,3711.2,3710.9,0.55]
[1753210773153,0.24746413,3711.1,3711.0,2.69461888]
[1753210773357,0.24746413,3711.1,3711.0,0.55]
[1753210773763,0.24746413,3711.1,3711.0,3.24469145]
[1753210773987,0.24746413,3711.1,3711.0,0.55]
[1753210774471,0.24746413,3711.1,3711.0,3.24469145]
[1753210775466,0.24746413,3711.1,3711.0,0.55]
[1753210776653,0.24746413,3711.1,3711.0,3.24469145]
[1753210778154,0.1344,3711.3,3711.1,0.55]
[1753210778397,0.5739,3711.3,3711.1,0.55]
[1753210778777,0.5739,3711.3,3711.0,0.55]
[1753210778975,0.5739,3711.3,3710.8,0.55]
[1753210779357,0.5739,3711.3,3710.7,0.55]
[1753210779613,0.5739,3711.3,3710.7,3.24488414]
[1753210779893,0.5739,3711.3,3710.7,0.55]
[1753210780457,0.5739,3711.3,3710.7,3.24485474]
[1753210780664,0.5739,3711.3,3710.7,3.24489038]
[1753210780872,0.5739,3711.3,3710.7,0.55]
[1753210781078,2.69467492,3711.1,3710.7,0.55]
[1753210781273,0.47318364,3711.0,3710.7,0.55]
[1753210781480,0.4395,3711.0,3710.7,0.55]
[1753210784637,2.69454771,3711.2,3710.7,0.55]
[1753210784778,3.13404771,3711.2,3710.7,0.55]
[1753210784979,2.7342656,3711.2,3710.7,0.55]
[1753210785171,0.38259492,3711.3,3710.7,0.55]
[1753210785514,0.4395,3712.1,3711.2,3.24451502]
[1753210785515,0.38259492,3711.7,3711.2,3.24451502]
[1753210785701,0.38259492,3711.7,3711.4,0.55]
[1753210786200,0.24819492,3711.6,3711.3,3.2444551]
[1753210786523,0.24819492,3711.5,3711.4,3.24440103]
[1753210787420,0.24819492,3711.5,3711.4,4.98309097]
[1753210788026,1e-08,3711.8,3711.7,4.05068325]
[1753210788386,1e-08,3711.8,3711.7,4.24113359]
[1753210788787,1e-08,3711.8,3711.7,4.05753359]
[1753210789115,1e-08,3711.8,3711.7,4.05068325]
[1753210789431,1e-08,3711.8,3711.7,5.26546237]
[1753210789601,1e-08,3711.8,3711.7,5.44906237]
[1753210789807,1e-08,3711.8,3711.7,5.44221203]
[1753210791228,1e-08,3711.8,3711.7,10.16921203]
[1753210792192,1e-08,3711.8,3711.7,9.98561203]
[1753210794729,1e-08,3711.8,3711.7,9.98461203]
[1753210795233,1e-08,3711.8,3711.7,1.3565]
[1753210795430,1e-08,3711.8,3710.8,0.001]
[1753210795431,0.43080001,3711.8,3711.1,2.69456203]
[1753210795632,0.03367729,3711.7,3711.2,4.726]
[1753210795836,0.03367729,3711.7,3711.2,7.42049512]
[1753210796049,0.4308,3711.6,3711.3,0.55]
[1753210796243,0.4308,3711.5,3711.3,0.55]
[1753210796422,0.4308,3711.5,3711.2,7.42049512]
[1753210796606,0.4308,3711.5,3711.2,4.726]
[1753210796809,0.4308,3711.5,3711.3,0.55]
[1753210797010,0.03367639,3711.8,3710.8,0.001]
[1753210797210,1.1862,3711.4,3710.8,2.69578192]
[1753210797407,1.21988001,3711.4,3710.9,4.725]
[1753210797641,0.4308,3711.3,3710.9,7.41975894]
[1753210797947,0.4308,3711.3,3711.1,0.55]
[1753210798107,0.4308,3711.2,3711.1,0.55]
[1753210798313,0.4308,3711.2,3711.1,3.24461884]
[1753210798614,0.4308,3711.2,3711.1,0.55]
[1753210799437,0.4308,3711.2,3711.1,5.275]
[1753210800448,2.69476407,3710.9,3710.8,0.001]
[1753210800612,0.03368455,3710.9,3710.8,0.001]
[1753210800810,0.7554,3711.4,3710.8,0.001]
[1753210801050,0.43080001,3711.8,3710.8,0.001]
[1753210801239,1e-08,3711.8,3711.7,3.24418325]
[1753210801437,1e-08,3711.8,3711.7,7.96918325]
[1753210801642,0.002,3712.8,3712.4,0.55]
[1753210801842,0.002,3713.3,3713.2,3.2430949]
[1753210802229,0.002,3713.3,3713.2,7.9680949]
[1753210802432,0.002,3713.3,3713.2,3.2430949]
[1753210802633,0.002,3713.3,3713.2,7.9680949]
[1753210802834,0.002,3714.3,3713.4,2.69294985]
[1753210803036,0.002,3714.3,3714.2,3.24236982]
[1753210803258,0.002,3714.3,3714.2,7.96736982]
[1753210804670,0.002,3714.3,3713.0,2.69318117]
[1753210804671,0.7618,3714.1,3713.8,4.724]
[1753210804859,0.7618,3714.1,3713.5,0.55]
[1753210805059,0.4308,3714.0,3713.6,0.55]
[1753210805363,0.7618,3714.1,3713.6,0.55]
[1753210805566,0.002,3714.3,3713.6,0.55]
[1753210805858,0.002,3714.3,3713.8,0.55]
[1753210806023,0.002,3714.3,3714.0,0.55]
[1753210806226,3.0,3714.2,3714.0,0.55]
[1753210806428,0.4308,3714.2,3714.0,0.55]
[1753210806732,0.002,3714.3,3714.0,0.55]
[1753210806934,3.002,3714.3,3714.0,0.55]
[1753210807148,0.4308,3714.2,3714.0,0.55]
[1753210807354,0.4308,3714.1,3714.0,0.55]
[1753210807825,0.002,3714.3,3714.0,0.55]
[1753210808147,2.69244231,3714.1,3713.2,2.6930271]
[1753210808349,3.0,3713.8,3713.3,4.723]
[1753210808555,1.27705915,3713.7,3713.0,4.723]
[1753210808871,1.2434,3713.7,3713.3,2.69301005]
[1753210809072,3.0,3714.0,3713.0,7.41623756]
[1753210809073,3.0,3713.8,3713.1,0.55]
[1753210809370,2.69268206,3713.8,3713.1,0.55]
[1753210809834,0.03365915,3713.7,3713.2,4.722]
[1753210810035,0.4308,3713.6,3713.3,4.722]
[1753210810249,0.4308,3713.5,3713.3,4.722]
[1753210811477,0.4308,3713.4,3713.3,5.272]
[1753210811659,0.4308,3713.4,3713.3,0.55]
[1753210812177,0.4308,3713.9,3713.3,0.55]
[1753210812377,2.69271254,3713.8,3713.3,0.55]
[1753210812582,2.69275516,3713.7,3713.3,0.55]
[1753210812748,0.4308,3713.6,3713.3,0.55]
[1753210812948,0.4308,3713.5,3713.3,0.55]
[1753210813144,0.4308,3713.9,3713.4,0.55]
[1753210813345,0.4308,3713.9,3713.3,3.24295034]
[1753210813346,0.1344,3713.8,3713.3,2.69299943]
[1753210813545,0.4308,3713.7,3713.2,0.55]
[1753210814072,0.4308,3713.7,3713.5,0.55]
[1753210814852,0.1344,3713.8,3713.7,3.24273231]
[1753210815156,3.1344,3714.0,3713.8,0.55]
[1753210815491,3.1344,3714.0,3713.4,0.1344]
[1753210815492,0.4308,3713.9,3713.7,0.55]
[1753210815655,0.1344,3714.0,3713.7,0.55]
[1753210815858,0.1344,3714.0,3713.9,0.55]
[1753210816248,0.002,3714.3,3713.9,3.2425873]
[1753210816497,0.1344,3714.2,3714.0,0.55]
[1753210816659,0.5652,3714.2,3714.0,0.55]
[1753210816867,0.5652,3714.2,3713.9,0.55]
[1753210817250,0.1344,3714.2,3714.0,3.24246299]
[1753210817561,0.1344,3714.2,3714.1,0.55]
[1753210817762,0.002,3714.3,3712.9,3.50845913]
[1753210817763,3.0,3714.0,3712.9,0.8152]
[1753210817968,0.03565371,3714.3,3713.1,0.55]
[1753210817969,0.002,3713.5,3713.1,0.55]
[1753210818178,0.002,3713.5,3713.2,2.94197369]
[1753210818387,0.002,3713.5,3713.4,3.24294985]
[1753210818591,0.002,3713.5,3713.4,0.79893515]
[1753210819471,0.002,3713.5,3713.4,3.491885]
[1753210819979,0.002,3713.5,3713.4,5.51793515]
[1753210820593,0.002,3713.5,3713.4,5.51693515]
[1753210820795,0.462,3713.5,3713.4,8.209885]
[1753210821396,0.002,3713.5,3713.4,5.51693515]
[1753210821571,0.002,3713.5,3713.4,0.79893515]
[1753210821772,0.462,3713.5,3713.4,5.51693515]
[1753210822215,0.462,3713.5,3713.4,8.209885]
[1753210822383,0.462,3713.5,3713.0,0.1344]
[1753210822583,0.49366187,3713.4,3713.3,4.718]
[1753210822786,0.002,3713.5,3713.3,4.718]
[1753210822787,0.002,3713.5,3713.3,4.96714819]
[1753210822975,0.002,3713.5,3713.4,0.24914111]
[1753210823171,0.002,3713.5,3713.4,3.49209096]
[1753210824309,0.002,3713.5,3713.4,3.24294985]
[1753210824478,0.002,3713.5,3713.4,3.49206077]
[1753210825075,0.002,3713.5,3713.4,4.93317261]
[1753210825408,0.002,3713.5,3713.4,4.9263531]
[1753210825706,0.1344,3714.2,3714.1,3.24244231]
[1753210825896,0.002,3714.3,3714.1,3.24244231]
[1753210825897,0.002,3714.3,3714.2,2.69236982]
[1753210826093,0.002,3714.3,3714.2,3.24236982]
[1753210826712,0.002,3714.3,3714.2,3.49136253]
[1753210827084,0.462,3714.3,3714.2,0.55]
[1753210827419,0.462,3714.3,3714.2,8.20631842]
[1753210827620,0.002,3714.3,3714.2,3.4914051]
[1753210828289,0.002,3714.3,3714.2,4.60153613]
[1753210828616,0.002,3714.3,3714.2,3.4914051]
[1753210829971,0.002,3714.3,3714.2,3.24236982]
[1753210830381,0.002,3714.3,3714.2,0.55]
[1753210830581,0.002,3714.3,3714.2,3.24236982]
[1753210831630,0.002,3714.3,3714.2,0.55]
[1753210831774,0.5964,3714.3,3713.9,4.713]
[1753210832108,0.46,3714.2,3714.1,3.24244065]
[1753210832318,0.46,3714.2,3713.6,0.1344]
[1753210832528,0.46,3714.2,3713.2,0.1344]
[1753210832529,0.1344,3713.9,3713.2,0.1344]
[1753210832816,3.03365552,3714.1,3712.7,3.66]
[1753210832817,0.1344,3713.3,3712.7,0.1344]
[1753210833021,0.5944,3713.3,3712.8,4.712]
[1753210833181,0.1344,3714.1,3714.0,0.55]
[1753210833380,0.5944,3714.1,3714.0,0.55]
[1753210833611,0.5944,3714.1,3713.7,3.24272613]
[1753210833925,0.46,3714.0,3713.7,0.55]
[1753210834443,0.46,3714.0,3713.7,3.24273149]
[1753210834617,0.46,3714.0,3713.7,0.55]
[1753210834819,0.49365734,3713.9,3713.7,0.55]
[1753210835016,0.5944,3713.8,3713.4,5.262]
[1753210835216,0.46,3713.7,3713.4,5.262]
[1753210835622,0.46,3713.6,3713.4,3.24293643]
[1753210835944,0.46,3713.5,3713.4,0.55]
[1753210836241,0.1344,3713.8,3713.4,0.55]
[1753210836453,0.49365915,3713.7,3713.4,0.55]
[1753210836751,2.69287733,3713.5,3713.4,0.55]
[1753210836913,3.93847733,3713.5,3713.2,4.71]
[1753210837259,3.93847733,3713.5,3713.0,4.71]
[1753210837260,0.1344,3713.3,3713.0,4.71]
[1753210837452,0.1344,3713.3,3713.1,0.55]
[1753210837611,0.46,3713.2,3713.0,4.71]
[1753210838022,0.46,3713.2,3713.1,3.24316743]
[1753210838218,0.1344,3713.3,3713.1,0.55]
[1753210838722,0.1344,3713.3,3713.2,0.24985567]
[1753210839949,0.46,3713.6,3713.1,0.55]
[1753210840145,0.46,3713.5,3713.3,0.55]
[1753210840451,0.46,3713.4,3713.0,0.551]
[1753210840753,0.46,3713.3,3713.1,0.24991133]
[1753210840949,0.46,3713.2,3713.0,7.95222622]
[1753210841156,0.46,3713.2,3713.1,3.4930819]
[1753210841358,0.46,3713.2,3713.1,0.79991447]
[1753210841860,0.1344,3713.4,3713.3,3.24302237]
[1753210842063,0.002,3713.7,3713.6,3.24280482]
[1753210845572,0.002,3713.7,3713.6,8.2746207]
[1753210845723,0.002,3713.7,3713.6,8.26780482]
[1753210845926,1e-08,3713.7,3713.6,12.69466467]
[1753210846158,1e-08,3713.7,3713.6,4.80406467]
[1753210846358,1e-08,3713.7,3713.6,4.55431833]
[1753210846570,1e-08,3713.7,3713.6,9.51005791]
[1753210846743,1e-08,3713.7,3713.6,9.69365791]
[1753210847269,1e-08,3713.7,3713.6,9.51005791]
[1753210847568,1e-08,3713.7,3713.6,7.39780482]
[1753210847767,1e-08,3713.7,3713.3,0.1344]
[1753210847970,1e-08,3713.7,3713.4,0.24973036]
[1753210847971,0.4442,3713.6,3713.4,0.24973036]
[1753210848159,0.8868,3713.4,3713.0,4.705]
[1753210848355,0.4442,3713.3,3713.2,2.69309391]
[1753210848543,0.7524,3713.4,3713.2,0.24975412]
[1753210848744,0.1344,3713.4,3713.2,0.55]
[1753210849529,0.1344,3713.4,3713.3,0.55]
[1753210849756,1e-08,3713.7,3713.0,0.00782187]
[1753210849969,0.1344,3713.4,3713.3,0.55]
[1753210850674,0.1344,3713.4,3713.3,3.24302237]
[1753210850866,0.1344,3713.4,3713.3,0.55]
[1753210851068,0.5786,3713.4,3713.3,0.55]
[1753210851551,0.5786,3713.4,3713.0,0.001]
[1753210851867,3.0,3713.1,3713.0,0.001]
[1753210852036,3.1344,3713.1,3713.0,0.001]
[1753210852231,0.1344,3713.1,3713.0,0.001]
[1753210852545,6.30543202,3713.1,3713.0,0.001]
[1753210852749,4.4007,3713.1,3713.0,0.001]
[1753210853870,7.09386743,3713.1,3713.0,0.001]
[1753210854281,4.4007,3713.1,3713.0,0.001]
[1753210854436,3.9565,3713.1,3713.0,0.001]
[1753210854795,7.09386743,3713.1,3713.0,0.001]
[1753210854938,4.4007,3713.1,3713.0,0.001]
[1753210855636,7.12753202,3713.1,3713.0,0.001]
[1753210855837,7.09386743,3713.1,3713.0,0.001]
[1753210857686,9.1007,3713.1,3713.0,0.001]
[1753210857849,0.1344,3713.1,3713.0,0.001]
[1753210858051,5.14320001,3713.7,3713.1,0.55]
[1753210858390,0.1344,3713.4,3713.3,3.24302237]
[1753210858556,0.1344,3713.4,3713.3,3.83674643]
[1753210858886,1e-08,3713.7,3713.6,3.24280482]
[1753210860749,1e-08,3713.7,3713.0,0.001]
[1753210860750,0.44420001,3713.7,3713.0,0.001]
[1753210861096,0.1344,3713.4,3713.0,0.001]
[1753210861401,0.1344,3713.4,3713.3,0.55]
[1753210861558,0.1344,3713.4,3713.2,3.2430892]
[1753210862187,0.1344,3713.4,3713.2,0.55]
[1753210862549,0.5786,3713.4,3713.2,0.55]
[1753210862757,0.5786,3713.4,3713.0,0.001]
[1753210862758,0.5786,3713.4,3713.0,3.24422721]
[1753210862975,0.5786,3713.4,3713.2,0.55]
[1753210863362,0.1344,3713.4,3713.3,0.55]
[1753210863967,0.1344,3713.4,3713.2,0.55]
[1753210864367,0.4442,3713.3,3713.2,0.55]
[1753210864572,0.4442,3713.3,3713.0,0.551]
[1753210864820,0.1344,3713.4,3713.2,0.55]
[1753210865096,0.1344,3713.4,3713.3,0.24922815]
[1753210865304,0.1344,3713.4,3713.2,3.2430949]
[1753210865305,0.1344,3713.4,3713.2,0.55]
[1753210866183,0.1344,3713.4,3713.3,0.55]
[1753210866491,0.1344,3713.4,3713.3,0.79923391]
[1753210866690,0.1344,3713.4,3713.1,0.55]
[1753210866893,0.1344,3713.4,3713.2,0.24920765]
[1753210867059,0.1344,3713.4,3713.3,0.55]
[1753210867488,0.5786,3713.4,3713.2,0.55]
[1753210867792,0.5786,3713.4,3713.2,3.24309207]
[1753210868165,0.5786,3713.4,3713.0,0.001]
[1753210868166,0.5786,3713.4,3713.3,3.4923187]
[1753210868360,0.5786,3713.4,3713.3,0.79929633]
[1753210868775,0.5786,3713.4,3713.3,0.79930323]
[1753210869297,0.5786,3713.4,3713.3,3.4923256]
[1753210869818,1e-08,3713.7,3713.6,3.24280482]
[1753210870099,1e-08,3713.7,3713.6,3.49210805]
[1753210870396,1e-08,3713.7,3713.6,0.79930323]
[1753210870597,0.44420001,3713.7,3713.6,0.79930508]
[1753210870782,0.44420001,3713.7,3713.6,0.55]
[1753210870986,11.62993232,3713.7,3713.6,0.2492962]
[1753210871217,5.69316743,3713.1,3713.0,0.001]
[1753210871429,6.49616743,3713.1,3713.0,0.25050616]
[1753210871600,6.94036743,3713.1,3713.0,0.001]
[1753210872420,6.94036743,3713.1,3713.0,0.25057223]
[1753210873424,4.2472,3713.1,3713.0,0.25057223]
[1753210873628,8.9362,3713.1,3713.0,0.25057223]
[1753210873828,11.62936743,3713.1,3713.0,0.25057223]
[1753210875900,8.9362,3713.1,3713.0,0.25057223]
[1753210876500,11.62936743,3713.1,3713.0,0.25057223]
[1753210876702,11.62936743,3713.1,3713.0,0.001]
[1753210876900,2.69360269,3712.5,3712.4,0.001]
[1753210877233,20.68481504,3712.5,3712.4,0.25069802]
[1753210877403,9.18546027,3712.5,3712.4,0.2507532]
[1753210877620,11.87906296,3712.5,3712.4,0.2507532]
[1753210878291,3.7683,3712.5,3712.4,0.2507532]
[1753210878496,1e-08,3713.7,3712.4,0.2507532]
[1753210878497,1e-08,3713.7,3712.5,2.69357665]
[1753210878498,3.0,3712.7,3712.5,2.69357665]
[1753210878728,4.685,3712.8,3712.6,2.94328334]
[1753210878908,4.685,3712.8,3712.7,2.94321079]
[1753210879490,4.685,3712.8,3712.7,0.2497532]
[1753210880087,4.685,3712.8,3712.7,2.94321079]
[1753210880740,4.685,3712.8,3712.7,0.2497532]
[1753210881238,0.51478,3712.8,3712.7,0.2497532]
[1753210881394,12.76501939,3712.8,3712.7,0.2497532]
[1753210881595,6.15618504,3712.8,3712.7,0.2497532]
[1753210881895,6.92568504,3712.8,3712.7,0.2497532]
[1753210882945,16.19423712,3712.8,3712.7,0.2497532]
[1753210883429,6.62165759,3712.7,3712.6,0.001]
[1753210883627,11.76545759,3712.7,3712.6,0.001]
[1753210884335,11.76545759,3712.7,3712.4,0.001]
[1753210884336,5.69360269,3712.5,3712.4,0.001]
[1753210884537,5.69360269,3712.5,3712.0,0.001]
[1753210884538,0.8284,3712.2,3712.0,0.001]
[1753210884698,20.50451868,3712.1,3712.0,0.001]
[1753210884898,20.47084502,3712.1,3712.0,0.2509188]
[1753210885098,20.47084502,3712.1,3712.0,1e-08]
[1753210885099,20.93364502,3712.1,3712.0,1e-08]
[1753210885298,20.93364502,3712.1,3710.8,0.001]
[1753210885299,2.69411067,3711.8,3710.8,0.001]
[1753210885498,11.23648705,3711.8,3710.8,0.001]
[1753210885734,11.20281067,3711.8,3710.8,0.001]
[1753210886029,11.66561067,3711.8,3710.8,0.001]
[1753210886239,11.66461067,3711.8,3710.8,0.001]
[1753210886626,11.86442221,3711.8,3710.8,0.001]
[1753210887416,11.99919075,3711.8,3710.8,2.69583378]
[1753210887616,11.99919075,3711.8,3710.8,0.001]
[1753210888237,11.99919075,3711.8,3710.8,2.69583295]
[1753210888626,11.99919075,3711.8,3710.8,0.001]
[1753210888935,4.62608008,3711.8,3710.8,0.001]
[1753210889099,9.30408008,3711.8,3711.2,2.69453716]
[1753210889303,11.99819075,3711.8,3711.0,0.55]
[1753210889540,11.99819075,3711.8,3711.0,3.24468967]
[1753210889740,11.99819075,3711.8,3711.0,0.55]
[1753210890037,9.30408008,3711.8,3711.2,2.69449203]
[1753210890207,1.16328008,3711.8,3711.7,2.69518325]
[1753210890537,7.94,3712.9,3711.7,2.96467848]
[1753210890538,4.678,3712.0,3711.7,2.96467848]
[1753210890706,0.1344,3711.8,3711.7,2.69516015]
[1753210890902,0.03367547,3711.9,3711.7,0.001]
[1753210891100,10.37011067,3711.8,3711.7,0.001]
[1753210891642,10.83291067,3711.8,3711.7,0.001]
[1753210893441,2.82710284,3712.0,3711.7,0.001]
[1753210893442,0.13313228,3712.0,3711.7,0.001]
[1753210893738,3.0,3711.8,3711.7,0.001]
[1753210894129,2.69411067,3711.8,3711.7,0.001]
[1753210894316,3.15691067,3711.8,3711.7,0.001]
[1753210894520,6.15691067,3711.8,3711.7,0.001]
[1753210895044,5.69411067,3711.8,3711.7,0.001]
[1753210895241,6.15691067,3711.8,3711.7,0.001]
[1753210896142,6.90991067,3711.8,3711.7,0.001]
[1753210897212,6.90991067,3711.8,3711.7,0.2504346]
[1753210897730,6.90991067,3711.8,3711.7,0.25042717]
[1753210900047,15.73174353,3711.0,3710.9,0.001]
[1753210900250,20.40074353,3711.0,3710.9,0.001]
[1753210900450,20.86354353,3711.0,3710.9,0.001]
[1753210902035,11.59499145,3711.0,3710.9,0.001]
[1753210907420,11.59499145,3711.0,3710.8,0.001]
[1753210907627,5.69490931,3710.7,3710.6,0.001]
[1753210907835,2.69519984,3710.3,3709.9,0.001]
[1753210908072,11.14448983,3710.3,3709.9,0.001]
[1753210908234,11.11079984,3710.3,3709.9,0.001]
[1753210908431,11.54069984,3710.3,3709.9,0.001]
[1753210909150,2.69541778,3710.0,3709.9,0.001]
[1753210909331,6.5619105,3710.0,3709.9,1e-08]
[1753210909531,7.661,3710.0,3709.9,1e-08]
[1753210910152,0.20431876,3710.4,3709.9,1e-08]
[1753210910365,0.4299,3711.2,3710.0,0.55]
[1753210910564,0.1344,3710.4,3710.3,4.02129984]
[1753210910772,0.1344,3710.9,3710.4,0.55]
[1753210910987,0.1344,3710.9,3710.3,1.82175853]
[1753210910988,0.1344,3710.9,3710.8,2.69483669]
[1753210911731,0.1344,3710.9,3710.6,0.55]
[1753210911963,0.1344,3710.9,3710.7,0.24909974]
[1753210912131,0.1344,3710.9,3710.8,0.24909974]
[1753210914157,2.69433926,3711.5,3710.8,0.24909974]
[1753210914158,0.95902222,3713.1,3711.3,0.55]
[1753210914353,0.1344,3711.8,3711.5,0.55]
[1753210914540,0.1344,3711.8,3711.0,2.69468129]
[1753210914541,0.1344,3711.8,3711.6,0.24909974]
[1753210914743,5.69417731,3711.8,3711.7,0.24909974]
[1753210914940,14.96272939,3711.8,3711.7,0.24909974]
[1753210915428,14.96272939,3711.8,3710.4,0.9362]
[1753210915429,5.82865408,3711.7,3710.4,0.9362]
[1753210915665,9.47040242,3711.8,3710.4,0.9362]
[1753210915666,0.1344,3710.6,3710.5,0.24902017]
[1753210916865,2.69519725,3710.4,3709.9,0.78460001]
[1753210917070,2.69513333,3710.4,3710.0,0.24902758]
[1753210917232,2.69513333,3710.4,3709.9,0.78460001]
[1753210917233,2.69527249,3710.2,3710.1,0.24902758]
[1753210917566,2.69521765,3710.3,3710.1,0.24905408]
[1753210917736,2.69521765,3710.3,3709.9,1e-08]
[1753210917737,2.69521765,3710.3,3710.2,0.24905408]
[1753210918133,5.69521765,3710.3,3710.2,0.24905408]
[1753210918364,10.77911765,3710.3,3710.2,0.24905408]
[1753210920664,6.12511765,3710.3,3710.2,0.24905408]
[1753210920864,10.77711765,3710.3,3710.2,0.24905408]
[1753210921573,10.77711765,3710.3,3709.9,1e-08]
[1753210921574,2.69541778,3710.0,3709.9,1e-08]
[1753210921740,3.50249044,3709.9,3709.8,0.001]
[1753210922068,6.96608407,3709.9,3709.8,0.001]
[1753210922381,2.69592645,3709.3,3709.0,0.001]
[1753210922586,20.39967853,3709.3,3709.0,0.001]
[1753210922876,20.82957853,3709.3,3709.0,0.001]
[1753210923678,3.0,3709.3,3709.0,0.7971]
[1753210923886,2.69515929,3710.4,3709.0,0.7971]
[1753210923887,4.649,3710.0,3709.5,2.69572888]
[1753210924039,0.1344,3709.5,3709.4,4.04195377]
[1753210924350,0.1344,3709.5,3709.4,1.20049538]
[1753210924549,2.69592645,3709.3,3709.1,0.001]
[1753210924750,16.64617761,3709.3,3709.1,0.001]
[1753210924950,17.04237853,3709.3,3709.1,0.001]
[1753210925872,20.04237853,3709.3,3709.1,0.001]
[1753210926579,20.17868207,3709.3,3709.1,0.001]
[1753210928812,2.69599913,3709.2,3709.1,0.001]
[1753210928952,5.86409911,3709.2,3709.1,1e-08]
[1753210929150,6.26029913,3709.2,3709.1,1e-08]
[1753210929368,7.08299913,3709.2,3709.1,1e-08]
[1753210930597,2.69465457,3711.1,3709.1,1e-08]
[1753210930598,1.1799,3709.7,3709.1,1e-08]
[1753210930799,2.69599913,3709.2,3709.1,1e-08]
[1753210930947,2.69559932,3709.8,3709.1,1e-08]
[1753210930948,3.12509984,3710.3,3709.1,1e-08]
[1753210931288,5.051091,3710.2,3709.1,2.88066986]
[1753210931488,4.643,3710.2,3709.3,0.55]
[1753210931791,3.0,3709.8,3709.3,0.55]
[1753210931964,2.69533773,3710.2,3709.3,0.55]
[1753210932151,4.643,3710.1,3709.3,0.55]
[1753210932484,7.643,3710.0,3709.4,2.69582776]
[1753210932672,7.33841947,3710.0,3709.3,3.24589818]
[1753210932875,3.0,3709.9,3709.3,3.24589818]
[1753210933087,7.33841947,3710.0,3709.3,3.24589818]
[1753210933383,3.0,3709.9,3709.4,2.69582782]
[1753210933592,3.0,3709.9,3709.4,2.6958282]
[1753210933791,3.0,3709.9,3709.3,0.55]
[1753210934000,3.0,3709.9,3709.5,2.69575304]
[1753210934282,3.0,3709.9,3709.3,3.39653885]
[1753210934487,3.0,3709.9,3709.4,2.69584515]
[1753210935052,3.0,3709.9,3709.5,2.69576218]
[1753210935388,3.0,3709.9,3709.3,0.70062]
[1753210935389,3.0,3709.9,3709.6,2.69567401]
[1753210935595,4.64,3709.9,3709.5,2.69572851]
[1753210935757,4.639,3709.9,3709.6,2.69570503]
[1753210936203,2.69534558,3710.1,3709.3,0.70062]
[1753210936486,3.0,3709.8,3709.3,3.39651852]
[1753210938094,3.0,3709.8,3709.3,0.70062]
[1753210938258,2.69592645,3709.3,3709.1,1e-08]
[1753210938592,4.3146862,3709.2,3709.1,1e-08]
[1753210938814,2.69586416,3709.4,3709.1,1e-08]
[1753210938972,4.636,3709.3,3709.1,1e-08]
[1753210940107,2.69570854,3709.6,3709.1,1e-08]
[1753210940108,4.636,3709.2,3709.1,1e-08]
[1753210940322,4.635,3709.2,3709.1,1e-08]
[1753210942086,7.36469911,3709.2,3709.1,1e-08]
[1753210942274,7.33099913,3709.2,3709.1,1e-08]
[1753210943321,10.33099913,3709.2,3709.1,1e-08]
[1753210943479,11.52049913,3709.2,3709.1,1e-08]
[1753210946827,6.88549913,3709.2,3709.1,1e-08]
[1753210947128,11.51549913,3709.2,3709.1,1e-08]
[1753210947891,6.88549913,3709.2,3709.1,1e-08]
[1753210948087,11.51349913,3709.2,3709.1,1e-08]
[1753210948701,6.88549913,3709.2,3709.1,1e-08]
[1753210948902,0.7725,3709.6,3709.1,1e-08]
[1753210949133,4.627,3709.5,3709.1,1e-08]
[1753210949299,4.627,3709.4,3709.1,1e-08]
[1753210949694,2.69598821,3709.3,3709.1,1e-08]
[1753210949992,2.69599913,3709.2,3709.1,1e-08]
[1753210950109,2.69593121,3709.3,3709.1,1e-08]
[1753210950308,3.0,3709.3,3709.1,1e-08]
[1753210951202,4.627,3709.2,3709.1,1e-08]
[1753210952241,4.625,3709.2,3709.1,1e-08]
[1753210954243,7.32099913,3709.2,3709.1,1e-08]
[1753210954399,4.625,3709.2,3709.1,1e-08]
[1753210954804,0.1344,3709.6,3709.3,0.55]
[1753210955051,0.1344,3709.6,3709.5,3.2457811]
[1753210955220,0.1344,3709.9,3709.8,0.7534]
[1753210955405,0.1344,3709.9,3709.8,3.4489631]
[1753210956845,0.1344,3709.9,3709.8,0.7534]
[1753210957838,0.1344,3709.9,3709.8,3.4489631]
[1753210958153,0.1344,3709.9,3709.8,4.81648866]
[1753210958350,0.002,3711.0,3710.9,4.02876407]
[1753210958775,0.002,3711.0,3710.9,4.21336407]
[1753210959062,0.002,3711.0,3710.9,4.34776407]
[1753210959211,0.002,3711.1,3710.9,4.34776407]
[1753210959412,0.002,3714.3,3711.9,0.1384]
[1753210959654,0.002,3714.3,3711.0,26.5006426]
[1753210959655,0.002,3714.3,3714.2,0.55]
[1753210960033,0.002,3714.3,3713.2,0.02693094]
[1753210960215,0.002,3714.3,3713.9,0.55]
[1753210960414,0.002,3714.3,3714.0,0.1846]
[1753210960716,0.002,3714.3,3714.2,2.69236982]
[1753210961448,0.002,3714.3,3714.1,7.30844154]
[1753210961952,0.002,3714.3,3714.1,4.616]
[1753210962249,0.002,3714.3,3714.2,4.613]
[1753210962453,0.002,3714.3,3713.1,0.1846]
[1753210962749,2.69430393,3714.3,3713.7,4.612]
[1753210963047,2.69259027,3713.9,3713.7,4.612]
[1753210963253,2.69285064,3713.6,3713.1,0.7963]
[1753210963453,2.69266472,3713.8,3713.2,4.611]
[1753210963655,3.0,3713.7,3713.2,4.611]
[1753210963818,2.69274008,3713.7,3713.3,4.611]
[1753210964154,3.0,3713.7,3713.3,4.611]